[Event "Titled Tuesday Blitz October 11 Late 2022"]
[White "Przybylski, Wojciech"]
[Black "Donchenko, Alexander"]
[WhiteFideId "1117599"]
[BlackFideId "24603295"]
[WhiteElo "2221"]
[BlackElo "2572"]
[Result "0-1"]
[Round "01"]
[TimeControl "180+1"]
[Date "2022.10.11"]
[WhiteClock "0:00:01"]
[BlackClock "0:01:35"]

1. e4 {[%clk 0:02:59]}  c6 {[%clk 0:03:00]} 2. d4 {[%clk 0:02:57]}  d5 {[%clk 0:03:01]} 3. e5 {[%clk 0:02:57]}  Bf5 {[%clk 0:03:01]} 4. Nf3 {[%clk 0:02:57]}  e6 {[%clk 0:03:01]} 5. Be2 {[%clk 0:02:56]}  Nd7 {[%clk 0:03:01]} 6. O-O {[%clk 0:02:56]}  h6 {[%clk 0:03:01]} 7. Be3 {[%clk 0:02:56]}  Ne7 {[%clk 0:03:00]} 8. Nbd2 {[%clk 0:02:55]}  Bh7 {[%clk 0:03:01]} 9. a4 {[%clk 0:02:54]}  Nf5 {[%clk 0:03:01]} 10. c3 {[%clk 0:02:51]}  c5 {[%clk 0:02:59]} 11. h3 {[%clk 0:02:49]}  a6 {[%clk 0:02:59]} 12. a5 {[%clk 0:02:47]}  Be7 {[%clk 0:02:56]} 13. Qa4 {[%clk 0:02:39]}  cxd4 {[%clk 0:02:55]} 14. cxd4 {[%clk 0:02:36]}  O-O {[%clk 0:02:55]} 15. Rac1 {[%clk 0:02:28]}  Nb8 {[%clk 0:02:54]} 16. Nb3 {[%clk 0:02:21]}  Nxe3 {[%clk 0:02:47]} 17. fxe3 {[%clk 0:02:22]}  Nc6 {[%clk 0:02:47]} 18. Ra1 {[%clk 0:02:02]}  Rc8 {[%clk 0:02:43]} 19. Rfc1 {[%clk 0:02:01]}  Qd7 {[%clk 0:02:41]} 20. Nc5 {[%clk 0:01:59]}  Bxc5 {[%clk 0:02:41]} 21. Rxc5 {[%clk 0:01:58]}  Rc7 {[%clk 0:02:40]} 22. Rac1 {[%clk 0:01:57]}  Rfc8 {[%clk 0:02:39]} 23. b4 {[%clk 0:01:52]}  Qe7 {[%clk 0:02:36]} 24. b5 {[%clk 0:01:43]}  axb5 {[%clk 0:02:33]} 25. Qxb5 {[%clk 0:01:32]}  Be4 {[%clk 0:02:31]} 26. Qb6 {[%clk 0:01:29]}  Bxf3 {[%clk 0:02:29]} 27. Bxf3 {[%clk 0:01:28]}  Qg5 {[%clk 0:02:28]} 28. R1c3 {[%clk 0:01:25]}  Nxe5 {[%clk 0:02:21]} 29. Rxc7 {[%clk 0:01:13]}  Nxf3+ {[%clk 0:02:20]} 30. Kf2 {[%clk 0:01:12]}  Rxc7 {[%clk 0:02:20]} 31. Rxc7 {[%clk 0:01:01]}  Nd2 {[%clk 0:02:20]} 32. Rc8+ {[%clk 0:00:45]}  Kh7 {[%clk 0:02:20]} 33. g4 {[%clk 0:00:39]}  Ne4+ {[%clk 0:02:18]} 34. Ke2 {[%clk 0:00:38]}  Qh4 {[%clk 0:02:18]} 35. Qb4 {[%clk 0:00:16]}  Qxh3 {[%clk 0:02:16]} 36. Kd3 {[%clk 0:00:07]}  Qxg4 {[%clk 0:02:15]} 37. Kc2 {[%clk 0:00:07]}  Qe2+ {[%clk 0:02:14]} 38. Kb3 {[%clk 0:00:06]}  Qxe3+ {[%clk 0:02:13]} 39. Ka4 {[%clk 0:00:06]}  h5 {[%clk 0:02:08]} 40. Kb5 {[%clk 0:00:05]}  h4 {[%clk 0:02:00]} 41. Kb6 {[%clk 0:00:06]}  h3 {[%clk 0:02:00]} 42. Kxb7 {[%clk 0:00:07]}  h2 {[%clk 0:01:59]} 43. Qf8 {[%clk 0:00:06]}  Kg6 {[%clk 0:01:56]} 44. Qh8 {[%clk 0:00:05]}  Nd6+ {[%clk 0:01:56]} 45. Kc6 {[%clk 0:00:05]}  Nxc8 {[%clk 0:01:56]} 46. Qxh2 {[%clk 0:00:05]}  Qc3+ {[%clk 0:01:53]} 47. Kb7 {[%clk 0:00:04]}  Qxa5 {[%clk 0:01:50]} 48. Kxc8 {[%clk 0:00:04]}  Qc3+ {[%clk 0:01:50]} 49. Kd7 {[%clk 0:00:04]}  Qxd4 {[%clk 0:01:50]} 50. Qg2+ {[%clk 0:00:03]}  Kh7 {[%clk 0:01:50]} 51. Ke7 {[%clk 0:00:02]}  Qf6+ {[%clk 0:01:49]} 52. Kf8 {[%clk 0:00:02]}  Qd8+ {[%clk 0:01:44]} 53. Kxf7 {[%clk 0:00:02]}  Qf6+ {[%clk 0:01:44]} 54. Ke8 {[%clk 0:00:03]}  d4 {[%clk 0:01:43]} 55. Qh3+ {[%clk 0:00:02]}  Kg8 {[%clk 0:01:43]} 56. Qb3 {[%clk 0:00:02]}  g5 {[%clk 0:01:40]} 57. Qd3 {[%clk 0:00:01]}  Kg7 {[%clk 0:01:40]} 58. Kd7 {[%clk 0:00:01]}  e5 {[%clk 0:01:40]} 59. Kc7 {[%clk 0:00:01]}  g4 {[%clk 0:01:39]} 60. Qe4 {[%clk 0:00:01]}  Qf4 {[%clk 0:01:38]} 61. Qd5 {[%clk 0:00:01]}  e4+ {[%clk 0:01:35]} 62. Kd8 {[%clk 0:00:01]}  Qf8+ {[%clk 0:01:34]} 63. Kd7 {[%clk 0:00:01]}  Qf7+ {[%clk 0:01:35]} 64. Kc8 {[%clk 0:00:01]}  Qxd5 {[%clk 0:01:35]} 0-1


[Site "https://www.chess.com"]

[Event "Titled Tuesday Blitz October 11 Late 2022"]
[White "Richter, Paul"]
[Black "Theodorou, Nikolas"]
[WhiteFideId "2046350"]
[BlackFideId "4262875"]
[WhiteElo "2503"]
[BlackElo "2512"]
[Result "0-1"]
[Round "01"]
[TimeControl "180+1"]
[Date "2022.10.11"]
[WhiteClock "0:00:01"]
[BlackClock "0:00:30"]

1. e4 {[%clk 0:03:00]}  b6 {[%clk 0:03:00]} 2. d4 {[%clk 0:03:00]}  Bb7 {[%clk 0:03:01]} 3. Nc3 {[%clk 0:03:00]}  d6 {[%clk 0:03:02]} 4. Bd3 {[%clk 0:02:55]}  Nd7 {[%clk 0:03:02]} 5. Nf3 {[%clk 0:02:52]}  e5 {[%clk 0:03:02]} 6. O-O {[%clk 0:02:51]}  Ngf6 {[%clk 0:03:03]} 7. Re1 {[%clk 0:02:48]}  g6 {[%clk 0:03:03]} 8. a4 {[%clk 0:02:47]}  a6 {[%clk 0:03:03]} 9. Bc4 {[%clk 0:02:42]}  Bg7 {[%clk 0:03:03]} 10. dxe5 {[%clk 0:02:40]}  dxe5 {[%clk 0:03:04]} 11. Nd5 {[%clk 0:02:38]}  O-O {[%clk 0:03:02]} 12. Nxf6+ {[%clk 0:02:14]}  Nxf6 {[%clk 0:03:01]} 13. Qxd8 {[%clk 0:01:58]}  Raxd8 {[%clk 0:03:02]} 14. Bg5 {[%clk 0:01:47]}  h6 {[%clk 0:03:00]} 15. Bxf6 {[%clk 0:01:37]}  Bxf6 {[%clk 0:03:01]} 16. c3 {[%clk 0:01:08]}  Kg7 {[%clk 0:02:56]} 17. h3 {[%clk 0:00:49]}  Rd6 {[%clk 0:02:52]} 18. Rad1 {[%clk 0:00:46]}  Rxd1 {[%clk 0:02:43]} 19. Rxd1 {[%clk 0:00:47]}  Bxe4 {[%clk 0:02:44]} 20. Re1 {[%clk 0:00:43]}  Bc6 {[%clk 0:01:28]} 21. Nxe5 {[%clk 0:00:39]}  Bxa4 {[%clk 0:01:26]} 22. Bxa6 {[%clk 0:00:32]}  Re8 {[%clk 0:01:25]} 23. Nf3 {[%clk 0:00:30]}  Rd8 {[%clk 0:01:25]} 24. Bc4 {[%clk 0:00:27]}  c5 {[%clk 0:01:23]} 25. Be2 {[%clk 0:00:20]}  b5 {[%clk 0:01:21]} 26. Kf1 {[%clk 0:00:16]}  b4 {[%clk 0:01:21]} 27. cxb4 {[%clk 0:00:13]}  cxb4 {[%clk 0:01:22]} 28. Bc4 {[%clk 0:00:11]}  Bxb2 {[%clk 0:01:18]} 29. Re7 {[%clk 0:00:11]}  Rd7 {[%clk 0:01:13]} 30. Rxd7 {[%clk 0:00:07]}  Bxd7 {[%clk 0:01:14]} 31. Ke2 {[%clk 0:00:06]}  Bc6 {[%clk 0:01:14]} 32. Bb3 {[%clk 0:00:04]}  Bc3 {[%clk 0:01:14]} 33. g3 {[%clk 0:00:04]}  f5 {[%clk 0:01:14]} 34. h4 {[%clk 0:00:04]}  Kf6 {[%clk 0:01:15]} 35. Nd2 {[%clk 0:00:04]}  Bb5+ {[%clk 0:01:15]} 36. Ke3 {[%clk 0:00:04]}  Bb2 {[%clk 0:01:11]} 37. Nc4 {[%clk 0:00:04]}  Bc1+ {[%clk 0:01:12]} 38. Kf3 {[%clk 0:00:04]}  Bc6+ {[%clk 0:00:50]} 39. Ke2 {[%clk 0:00:04]}  Bd5 {[%clk 0:00:51]} 40. Kd3 {[%clk 0:00:03]}  Be4+ {[%clk 0:00:38]} 41. Kd4 {[%clk 0:00:03]}  g5 {[%clk 0:00:38]} 42. hxg5+ {[%clk 0:00:03]}  hxg5 {[%clk 0:00:38]} 43. Ne3 {[%clk 0:00:04]}  Bd2 {[%clk 0:00:30]} 44. Nd5+ {[%clk 0:00:03]}  Kg6 {[%clk 0:00:31]} 45. f4 {[%clk 0:00:01]}  g4 {[%clk 0:00:30]} 46. Ne3 {[%clk 0:00:01]}  Be1 {[%clk 0:00:29]} 47. Nf1 {[%clk 0:00:01]}  Bg2 {[%clk 0:00:29]} 48. Ne3 {[%clk 0:00:01]}  Bf2 {[%clk 0:00:29]} 49. Kd3 {[%clk 0:00:01]}  Be4+ {[%clk 0:00:30]} 0-1


[Site "https://www.chess.com"]

[Event "Titled Tuesday Blitz October 11 Late 2022"]
[White "Rose, Felix"]
[Black "Sourath Biswas"]
[WhiteFideId "5105722"]
[BlackFideId "35091484"]
[WhiteElo "2039"]
[BlackElo "2164"]
[Result "0-1"]
[Round "01"]
[TimeControl "180+1"]
[Date "2022.10.12"]
[WhiteClock "0:00:27"]
[BlackClock "0:00:20"]

1. d4 {[%clk 0:02:56]}  Nf6 {[%clk 0:02:58]} 2. Nc3 {[%clk 0:02:55]}  d5 {[%clk 0:02:56]} 3. Bf4 {[%clk 0:02:55]}  g6 {[%clk 0:02:49]} 4. h3 {[%clk 0:02:53]}  Bg7 {[%clk 0:02:48]} 5. Nb5 {[%clk 0:02:52]}  Na6 {[%clk 0:02:48]} 6. e3 {[%clk 0:02:51]}  O-O {[%clk 0:02:47]} 7. Nf3 {[%clk 0:02:50]}  c6 {[%clk 0:02:42]} 8. Nc3 {[%clk 0:02:50]}  Nc7 {[%clk 0:02:42]} 9. Bd3 {[%clk 0:02:50]}  Bf5 {[%clk 0:02:40]} 10. Bxf5 {[%clk 0:02:49]}  gxf5 {[%clk 0:02:36]} 11. Ne5 {[%clk 0:02:48]}  Ne6 {[%clk 0:02:31]} 12. Qd3 {[%clk 0:02:36]}  Ne4 {[%clk 0:02:30]} 13. g4 {[%clk 0:02:31]}  Nxf4 {[%clk 0:02:25]} 14. exf4 {[%clk 0:02:31]}  Qc8 {[%clk 0:01:40]} 15. gxf5 {[%clk 0:01:46]}  Qxf5 {[%clk 0:01:39]} 16. O-O-O {[%clk 0:01:46]}  Qxf4+ {[%clk 0:01:33]} 17. Kb1 {[%clk 0:01:45]}  Nxf2 {[%clk 0:01:33]} 18. Qf1 {[%clk 0:01:18]}  Qf6 {[%clk 0:01:02]} 19. Nd7 {[%clk 0:01:16]}  Qh4 {[%clk 0:00:46]} 20. Nxf8 {[%clk 0:01:11]}  Nxd1 {[%clk 0:00:43]} 21. Qxd1 {[%clk 0:00:55]}  Rxf8 {[%clk 0:00:43]} 22. Ne2 {[%clk 0:00:54]}  f5 {[%clk 0:00:39]} 23. c3 {[%clk 0:00:47]}  f4 {[%clk 0:00:39]} 24. Nc1 {[%clk 0:00:43]}  f3 {[%clk 0:00:38]} 25. Rf1 {[%clk 0:00:42]}  Qxh3 {[%clk 0:00:38]} 26. Nd3 {[%clk 0:00:42]}  Qg2 {[%clk 0:00:32]} 27. Qe1 {[%clk 0:00:36]}  Qe2 {[%clk 0:00:24]} 28. Qxe2 {[%clk 0:00:28]}  fxe2 {[%clk 0:00:25]} 29. Rxf8+ {[%clk 0:00:29]}  Bxf8 {[%clk 0:00:22]} 30. Kc2 {[%clk 0:00:29]}  Bh6 {[%clk 0:00:23]} 31. Ne1 {[%clk 0:00:28]}  Bf4 {[%clk 0:00:21]} 32. Kd3 {[%clk 0:00:27]}  Bg3 {[%clk 0:00:21]} 33. Kxe2 {[%clk 0:00:28]}  Bxe1 {[%clk 0:00:22]} 34. Kxe1 {[%clk 0:00:29]}  e5 {[%clk 0:00:20]} 35. dxe5 {[%clk 0:00:27]}  Kf7 {[%clk 0:00:20]} 0-1


[Site "https://www.chess.com"]

[Event "Titled Tuesday Blitz October 11 Late 2022"]
[White "Rosen, Eric"]
[Black "Stanisz, Patryk"]
[WhiteFideId "2032562"]
[BlackFideId "1123106"]
[WhiteElo "2362"]
[BlackElo "2069"]
[Result "1-0"]
[Round "01"]
[TimeControl "180+1"]
[Date "2022.10.12"]
[WhiteClock "0:00:38"]
[BlackClock "0:00:02"]

1. d4 {[%clk 0:02:50]}  d5 {[%clk 0:02:59]} 2. Bf4 {[%clk 0:02:25]}  Nf6 {[%clk 0:02:58]} 3. e3 {[%clk 0:02:12]}  c5 {[%clk 0:02:57]} 4. Nf3 {[%clk 0:02:09]}  Nc6 {[%clk 0:02:58]} 5. Nbd2 {[%clk 0:02:07]}  e6 {[%clk 0:02:52]} 6. c3 {[%clk 0:02:07]}  cxd4 {[%clk 0:02:50]} 7. exd4 {[%clk 0:02:07]}  Nh5 {[%clk 0:02:51]} 8. Be3 {[%clk 0:02:06]}  Bd6 {[%clk 0:02:51]} 9. Ne5 {[%clk 0:02:05]}  g6 {[%clk 0:02:50]} 10. g4 {[%clk 0:02:06]}  Ng7 {[%clk 0:02:50]} 11. h4 {[%clk 0:02:05]}  h5 {[%clk 0:02:51]} 12. Bg5 {[%clk 0:02:05]}  Qb6 {[%clk 0:02:51]} 13. Bf6 {[%clk 0:02:01]}  Kf8 {[%clk 0:02:51]} 14. g5 {[%clk 0:01:48]}  Bxe5 {[%clk 0:01:54]} 15. dxe5 {[%clk 0:01:44]}  Rg8 {[%clk 0:01:54]} 16. Qb3 {[%clk 0:01:26]}  Qxb3 {[%clk 0:01:32]} 17. axb3 {[%clk 0:01:26]}  Nf5 {[%clk 0:01:20]} 18. Bd3 {[%clk 0:01:26]}  Ke8 {[%clk 0:00:56]} 19. b4 {[%clk 0:01:26]}  Nce7 {[%clk 0:00:36]} 20. Nf3 {[%clk 0:01:25]}  Bd7 {[%clk 0:00:35]} 21. Kd2 {[%clk 0:01:25]}  Bc6 {[%clk 0:00:35]} 22. b5 {[%clk 0:01:16]}  Bd7 {[%clk 0:00:35]} 23. Ra3 {[%clk 0:01:14]}  d4 {[%clk 0:00:25]} 24. c4 {[%clk 0:01:11]}  Nc8 {[%clk 0:00:23]} 25. Bxf5 {[%clk 0:01:06]}  exf5 {[%clk 0:00:21]} 26. Nxd4 {[%clk 0:01:07]}  Be6 {[%clk 0:00:21]} 27. Kc3 {[%clk 0:01:01]}  Nb6 {[%clk 0:00:16]} 28. Nxe6 {[%clk 0:00:47]}  fxe6 {[%clk 0:00:17]} 29. b3 {[%clk 0:00:47]}  Kf7 {[%clk 0:00:14]} 30. Rha1 {[%clk 0:00:47]}  Nc8 {[%clk 0:00:04]} 31. c5 {[%clk 0:00:46]}  Re8 {[%clk 0:00:04]} 32. Rd1 {[%clk 0:00:45]}  Kg8 {[%clk 0:00:03]} 33. Rd7 {[%clk 0:00:44]}  a6 {[%clk 0:00:03]} 34. Rxb7 {[%clk 0:00:43]}  a5 {[%clk 0:00:03]} 35. Rg7+ {[%clk 0:00:42]}  Kf8 {[%clk 0:00:02]} 36. Rxg6 {[%clk 0:00:41]}  Rb8 {[%clk 0:00:02]} 37. Kc4 {[%clk 0:00:39]}  Ne7 {[%clk 0:00:02]} 38. Rh6 {[%clk 0:00:39]}  Ng8 {[%clk 0:00:02]} 39. Rh7 {[%clk 0:00:38]} 1-0


[Site "https://www.chess.com"]

[Event "Titled Tuesday Blitz October 11 Late 2022"]
[White "Rosenberg, Evan S"]
[Black "Atakishiyev, Elmar"]
[WhiteFideId "2019299"]
[BlackFideId "13410547"]
[WhiteElo "2362"]
[BlackElo "2203"]
[Result "0-1"]
[Round "01"]
[TimeControl "180+1"]
[Date "2022.10.12"]
[WhiteClock "0:01:10"]
[BlackClock "0:01:59"]

1. e4 {[%clk 0:03:00]}  c5 {[%clk 0:02:57]} 2. Nc3 {[%clk 0:02:59]}  e6 {[%clk 0:02:56]} 3. Nge2 {[%clk 0:02:58]}  Nc6 {[%clk 0:02:56]} 4. f4 {[%clk 0:02:35]}  d5 {[%clk 0:02:54]} 5. e5 {[%clk 0:02:24]}  g5 {[%clk 0:02:54]} 6. d4 {[%clk 0:02:22]}  cxd4 {[%clk 0:02:51]} 7. Nb5 {[%clk 0:02:21]}  Qa5+ {[%clk 0:02:47]} 8. Bd2 {[%clk 0:02:00]}  Qxb5 {[%clk 0:02:47]} 9. Nxd4 {[%clk 0:01:48]}  Qb6 {[%clk 0:02:46]} 10. Nxc6 {[%clk 0:01:34]}  bxc6 {[%clk 0:02:45]} 11. fxg5 {[%clk 0:01:35]}  Ne7 {[%clk 0:02:37]} 12. Bd3 {[%clk 0:01:18]}  Ng6 {[%clk 0:02:27]} 13. Qe2 {[%clk 0:01:11]}  Rb8 {[%clk 0:01:59]} 14. O-O-O {[%clk 0:01:10]}  Qxb2# {[%clk 0:01:59]} 0-1


[Site "https://www.chess.com"]

[Event "Titled Tuesday Blitz October 11 Late 2022"]
[White "Savic, Miroslav"]
[Black "Maris, Ivo"]
[WhiteFideId "14508494"]
[BlackFideId "1028146"]
[WhiteElo "2209"]
[BlackElo "2542"]
[Result "1/2-1/2"]
[Round "01"]
[TimeControl "180+1"]
[Date "2022.10.12"]
[WhiteClock "0:00:21"]
[BlackClock "0:01:07"]

1. Nf3 {[%clk 0:02:52]}  g6 {[%clk 0:03:00]} 2. e4 {[%clk 0:02:51]}  Bg7 {[%clk 0:03:01]} 3. h4 {[%clk 0:02:47]}  d6 {[%clk 0:03:02]} 4. h5 {[%clk 0:02:47]}  gxh5 {[%clk 0:03:03]} 5. Rxh5 {[%clk 0:02:46]}  Nf6 {[%clk 0:03:03]} 6. Rh1 {[%clk 0:02:42]}  c5 {[%clk 0:03:03]} 7. Nc3 {[%clk 0:02:40]}  Bg4 {[%clk 0:03:03]} 8. Be2 {[%clk 0:02:34]}  Nc6 {[%clk 0:03:03]} 9. d3 {[%clk 0:02:34]}  Rb8 {[%clk 0:03:02]} 10. Bh6 {[%clk 0:02:25]}  Bxh6 {[%clk 0:03:01]} 11. Rxh6 {[%clk 0:02:25]}  b5 {[%clk 0:03:02]} 12. Qd2 {[%clk 0:02:12]}  b4 {[%clk 0:03:01]} 13. Nd5 {[%clk 0:02:10]}  Nxd5 {[%clk 0:03:01]} 14. exd5 {[%clk 0:02:10]}  Bxf3 {[%clk 0:03:02]} 15. dxc6 {[%clk 0:01:51]}  Bxc6 {[%clk 0:03:02]} 16. Bh5 {[%clk 0:01:50]}  Qd7 {[%clk 0:02:55]} 17. O-O-O {[%clk 0:01:44]}  Bd5 {[%clk 0:02:54]} 18. Qg5 {[%clk 0:01:38]}  Bxa2 {[%clk 0:02:51]} 19. Qg7 {[%clk 0:01:37]}  Rf8 {[%clk 0:02:51]} 20. Rxh7 {[%clk 0:01:37]}  Qf5 {[%clk 0:02:47]} 21. Rh8 {[%clk 0:01:30]}  Kd7 {[%clk 0:02:38]} 22. Rxf8 {[%clk 0:01:29]}  Rxf8 {[%clk 0:02:39]} 23. Qxf8 {[%clk 0:01:23]}  Qxh5 {[%clk 0:02:39]} 24. Qa8 {[%clk 0:01:21]}  Bd5 {[%clk 0:02:27]} 25. Qxa7+ {[%clk 0:01:18]}  Ke6 {[%clk 0:02:28]} 26. Re1+ {[%clk 0:01:16]}  Kf5 {[%clk 0:02:27]} 27. Qxe7 {[%clk 0:01:06]}  Qh6+ {[%clk 0:02:25]} 28. Qe3 {[%clk 0:01:04]}  Qg7 {[%clk 0:02:23]} 29. Qg3 {[%clk 0:00:54]}  Qh6+ {[%clk 0:02:22]} 30. Re3 {[%clk 0:00:51]}  b3 {[%clk 0:02:20]} 31. c4 {[%clk 0:00:50]}  Bc6 {[%clk 0:02:19]} 32. Kd2 {[%clk 0:00:49]}  Bb7 {[%clk 0:02:13]} 33. f3 {[%clk 0:00:48]}  Qh8 {[%clk 0:02:06]} 34. Qxd6 {[%clk 0:00:46]}  Qxb2+ {[%clk 0:02:06]} 35. Ke1 {[%clk 0:00:47]}  Bc8 {[%clk 0:01:53]} 36. Qh6 {[%clk 0:00:41]}  Qxg2 {[%clk 0:01:47]} 37. Qh7+ {[%clk 0:00:36]}  Kf4 {[%clk 0:01:42]} 38. Qh6+ {[%clk 0:00:34]}  Kf5 {[%clk 0:01:41]} 39. Qh7+ {[%clk 0:00:33]}  Kf6 {[%clk 0:01:36]} 40. Qh8+ {[%clk 0:00:32]}  Qg7 {[%clk 0:01:32]} 41. Qxc8 {[%clk 0:00:30]}  Qg1+ {[%clk 0:01:32]} 42. Kd2 {[%clk 0:00:30]}  b2 {[%clk 0:01:29]} 43. Qh8+ {[%clk 0:00:24]}  Kf5 {[%clk 0:01:23]} 44. Qxb2 {[%clk 0:00:22]}  Qg2+ {[%clk 0:01:22]} 45. Kc3 {[%clk 0:00:20]}  Qg1 {[%clk 0:01:21]} 46. Qc2 {[%clk 0:00:18]}  Qxe3 {[%clk 0:01:21]} 47. Qd2 {[%clk 0:00:17]}  Qxd2+ {[%clk 0:01:04]} 48. Kxd2 {[%clk 0:00:17]}  Kf4 {[%clk 0:01:05]} 49. Ke2 {[%clk 0:00:18]}  Kg3 {[%clk 0:01:05]} 50. Ke3 {[%clk 0:00:18]}  f5 {[%clk 0:01:06]} 51. d4 {[%clk 0:00:16]}  cxd4+ {[%clk 0:01:06]} 52. Kxd4 {[%clk 0:00:17]}  Kxf3 {[%clk 0:01:06]} 53. c5 {[%clk 0:00:18]}  Ke2 {[%clk 0:01:06]} 54. c6 {[%clk 0:00:19]}  f4 {[%clk 0:01:06]} 55. c7 {[%clk 0:00:20]}  f3 {[%clk 0:01:07]} 56. c8=Q {[%clk 0:00:21]}  f2 {[%clk 0:01:08]} 57. Qf5 {[%clk 0:00:21]}  f1=Q {[%clk 0:01:08]} 58. Qd3+ {[%clk 0:00:20]}  Ke1 {[%clk 0:01:07]} 59. Qxf1+ {[%clk 0:00:21]}  Kxf1 {[%clk 0:01:07]} 1/2-1/2


[Site "https://www.chess.com"]

[Event "Titled Tuesday Blitz October 11 Late 2022"]
[White "Schrik, Rachid"]
[Black "Koziorowicz, Michal"]
[WhiteFideId "1009818"]
[BlackFideId "21809194"]
[WhiteElo "2098"]
[BlackElo "2220"]
[Result "0-1"]
[Round "01"]
[TimeControl "180+1"]
[Date "2022.10.12"]
[WhiteClock "0:00:03"]
[BlackClock "0:00:45"]

1. d4 {[%clk 0:02:49]}  Nf6 {[%clk 0:02:59]} 2. c4 {[%clk 0:02:49]}  e6 {[%clk 0:02:58]} 3. Nc3 {[%clk 0:02:49]}  Bb4 {[%clk 0:02:58]} 4. a3 {[%clk 0:02:49]}  Bxc3+ {[%clk 0:02:58]} 5. bxc3 {[%clk 0:02:50]}  b6 {[%clk 0:02:58]} 6. f3 {[%clk 0:02:50]}  Bb7 {[%clk 0:02:59]} 7. e4 {[%clk 0:02:51]}  d6 {[%clk 0:03:00]} 8. Bd3 {[%clk 0:02:50]}  Nbd7 {[%clk 0:03:00]} 9. Ne2 {[%clk 0:02:46]}  O-O {[%clk 0:02:59]} 10. O-O {[%clk 0:02:46]}  e5 {[%clk 0:03:00]} 11. Ng3 {[%clk 0:02:40]}  Re8 {[%clk 0:02:39]} 12. Ra2 {[%clk 0:02:27]}  Nf8 {[%clk 0:02:39]} 13. Raf2 {[%clk 0:02:05]}  Ne6 {[%clk 0:02:35]} 14. d5 {[%clk 0:01:50]}  Nf4 {[%clk 0:02:25]} 15. Nf5 {[%clk 0:01:41]}  Bc8 {[%clk 0:02:19]} 16. Ne3 {[%clk 0:01:26]}  Nd7 {[%clk 0:02:15]} 17. Kh1 {[%clk 0:01:23]}  Nc5 {[%clk 0:02:15]} 18. Bc2 {[%clk 0:01:22]}  a5 {[%clk 0:02:08]} 19. g3 {[%clk 0:01:22]}  Ng6 {[%clk 0:01:58]} 20. Nf5 {[%clk 0:01:15]}  Bxf5 {[%clk 0:01:56]} 21. exf5 {[%clk 0:01:15]}  Nf8 {[%clk 0:01:52]} 22. g4 {[%clk 0:01:12]}  Qh4 {[%clk 0:01:49]} 23. Rg2 {[%clk 0:01:03]}  a4 {[%clk 0:01:43]} 24. Be3 {[%clk 0:00:55]}  Nfd7 {[%clk 0:01:42]} 25. Qd2 {[%clk 0:00:51]}  e4 {[%clk 0:01:36]} 26. f4 {[%clk 0:00:21]}  f6 {[%clk 0:01:09]} 27. Rfg1 {[%clk 0:00:21]}  Re7 {[%clk 0:01:09]} 28. g5 {[%clk 0:00:21]}  Rae8 {[%clk 0:01:08]} 29. Rg4 {[%clk 0:00:20]}  Qh3 {[%clk 0:01:02]} 30. R4g3 {[%clk 0:00:16]}  Qxf5 {[%clk 0:01:01]} 31. gxf6 {[%clk 0:00:16]}  Nxf6 {[%clk 0:01:02]} 32. Rg5 {[%clk 0:00:16]}  Qh3 {[%clk 0:01:02]} 33. R1g3 {[%clk 0:00:16]}  Qf1+ {[%clk 0:01:02]} 34. Rg1 {[%clk 0:00:15]}  Qf3+ {[%clk 0:01:02]} 35. R1g2 {[%clk 0:00:15]}  Nd3 {[%clk 0:01:03]} 36. Bxd3 {[%clk 0:00:14]}  exd3 {[%clk 0:01:03]} 37. Bd4 {[%clk 0:00:12]}  Re1+ {[%clk 0:01:03]} 38. Bg1 {[%clk 0:00:08]}  g6 {[%clk 0:00:59]} 39. f5 {[%clk 0:00:08]}  R8e2 {[%clk 0:00:50]} 40. Rxg6+ {[%clk 0:00:03]}  hxg6 {[%clk 0:00:47]} 41. Qg5 {[%clk 0:00:03]}  Rxg1+ {[%clk 0:00:45]} 0-1


[Site "https://www.chess.com"]

[Event "Titled Tuesday Blitz October 11 Late 2022"]
[White "Shandrygin, Nikita"]
[Black "Jobava, Baadur"]
[WhiteFideId "24198668"]
[BlackFideId "13601520"]
[WhiteElo "2323"]
[BlackElo "2582"]
[Result "0-1"]
[Round "01"]
[TimeControl "180+1"]
[Date "2022.10.11"]
[WhiteClock "0:00:07"]
[BlackClock "0:02:18"]

1. e4 {[%clk 0:03:00]}  e6 {[%clk 0:02:58]} 2. d4 {[%clk 0:03:00]}  d5 {[%clk 0:02:59]} 3. Nd2 {[%clk 0:03:01]}  Bd7 {[%clk 0:02:59]} 4. exd5 {[%clk 0:02:52]}  exd5 {[%clk 0:03:00]} 5. Ngf3 {[%clk 0:02:52]}  Nc6 {[%clk 0:03:00]} 6. h3 {[%clk 0:02:46]}  Bd6 {[%clk 0:03:00]} 7. Bd3 {[%clk 0:02:46]}  Qe7+ {[%clk 0:02:59]} 8. Qe2 {[%clk 0:02:45]}  Qxe2+ {[%clk 0:03:00]} 9. Bxe2 {[%clk 0:02:46]}  O-O-O {[%clk 0:03:00]} 10. O-O {[%clk 0:02:44]}  Nge7 {[%clk 0:03:00]} 11. c3 {[%clk 0:02:41]}  f6 {[%clk 0:03:00]} 12. Re1 {[%clk 0:02:27]}  g5 {[%clk 0:03:00]} 13. Nf1 {[%clk 0:02:00]}  h5 {[%clk 0:02:58]} 14. Ng3 {[%clk 0:01:48]}  Nf5 {[%clk 0:02:53]} 15. Nxf5 {[%clk 0:01:41]}  Bxf5 {[%clk 0:02:54]} 16. Be3 {[%clk 0:01:41]}  Ne7 {[%clk 0:02:51]} 17. Rad1 {[%clk 0:01:38]}  Ng6 {[%clk 0:02:48]} 18. Bd3 {[%clk 0:01:25]}  Bxd3 {[%clk 0:02:48]} 19. Rxd3 {[%clk 0:01:26]}  Kd7 {[%clk 0:02:48]} 20. Kf1 {[%clk 0:01:09]}  g4 {[%clk 0:02:46]} 21. Ng1 {[%clk 0:01:07]}  f5 {[%clk 0:02:41]} 22. Bg5 {[%clk 0:01:04]}  Rdf8 {[%clk 0:02:40]} 23. h4 {[%clk 0:00:24]}  f4 {[%clk 0:02:37]} 24. Ne2 {[%clk 0:00:14]}  c6 {[%clk 0:02:32]} 25. Kg1 {[%clk 0:00:15]}  Rf7 {[%clk 0:02:32]} 26. Nc1 {[%clk 0:00:14]}  Nf8 {[%clk 0:02:23]} 27. b3 {[%clk 0:00:10]}  Ne6 {[%clk 0:02:23]} 28. c4 {[%clk 0:00:10]}  Rf5 {[%clk 0:02:21]} 29. Ne2 {[%clk 0:00:06]}  Nxg5 {[%clk 0:02:20]} 30. hxg5 {[%clk 0:00:06]}  Rxg5 {[%clk 0:02:20]} 31. Nc3 {[%clk 0:00:07]}  h4 {[%clk 0:02:18]} 0-1


[Site "https://www.chess.com"]

[Event "Titled Tuesday Blitz October 11 Late 2022"]
[White "Shapiro, Daniel"]
[Black "Zeynalli, Rashad"]
[WhiteFideId "2001780"]
[BlackFideId "13403320"]
[WhiteElo "2213"]
[BlackElo "2125"]
[Result "1/2-1/2"]
[Round "01"]
[TimeControl "180+1"]
[Date "2022.10.12"]
[WhiteClock "0:00:56"]
[BlackClock "0:00:24"]

1. d4 {[%clk 0:03:00]}  Nf6 {[%clk 0:02:57]} 2. c4 {[%clk 0:03:00]}  e6 {[%clk 0:02:57]} 3. g3 {[%clk 0:02:59]}  d5 {[%clk 0:02:57]} 4. Nf3 {[%clk 0:02:58]}  Be7 {[%clk 0:02:57]} 5. Bg2 {[%clk 0:02:56]}  O-O {[%clk 0:02:58]} 6. O-O {[%clk 0:02:55]}  dxc4 {[%clk 0:02:58]} 7. Ne5 {[%clk 0:02:55]}  Nc6 {[%clk 0:02:57]} 8. Bxc6 {[%clk 0:02:55]}  bxc6 {[%clk 0:02:58]} 9. Nxc6 {[%clk 0:02:55]}  Qe8 {[%clk 0:02:57]} 10. Nxe7+ {[%clk 0:02:56]}  Qxe7 {[%clk 0:02:58]} 11. Qa4 {[%clk 0:02:56]}  c5 {[%clk 0:02:57]} 12. Qxc4 {[%clk 0:02:54]}  cxd4 {[%clk 0:02:56]} 13. Qxd4 {[%clk 0:02:53]}  e5 {[%clk 0:02:56]} 14. Qh4 {[%clk 0:02:53]}  h6 {[%clk 0:02:50]} 15. Nc3 {[%clk 0:02:50]}  Rb8 {[%clk 0:02:46]} 16. b3 {[%clk 0:02:40]}  Bb7 {[%clk 0:02:35]} 17. Be3 {[%clk 0:02:29]}  Qe6 {[%clk 0:02:27]} 18. Rac1 {[%clk 0:02:23]}  a6 {[%clk 0:01:59]} 19. Rfd1 {[%clk 0:02:12]}  Rfd8 {[%clk 0:01:58]} 20. f3 {[%clk 0:01:45]}  Rbc8 {[%clk 0:01:54]} 21. Na4 {[%clk 0:01:25]}  Rxd1+ {[%clk 0:01:47]} 22. Rxd1 {[%clk 0:01:25]}  Nd5 {[%clk 0:01:33]} 23. Bf2 {[%clk 0:01:11]}  Qg6 {[%clk 0:01:08]} 24. e4 {[%clk 0:00:57]}  Nf6 {[%clk 0:00:24]} 25. Nc5 {[%clk 0:00:56]}  Bc6 {[%clk 0:00:24]} 1/2-1/2


[Site "https://www.chess.com"]